[Event "18th Charleroi Open-A 2019"]
[Site "Charleroi"]
[Date "2019.07.28"]
[Round "2.27"]
[White "Callier, Christophe"]
[Black "Hafner, Christian"]
[Result "1/2-1/2"]
[ECO "E62"]
[WhiteElo "1986"]
[BlackElo "2071"]
[Annotator "NA RC"]
[PlyCount "131"]
[EventDate "2019.07.22"]
[EventType "swiss"]
[EventCountry "BEL"]
[SourceTitle "playchess.com"]
[Source "ChessBase"]
[SourceQuality "1"]
[TimeControl "40/5400+30:1800+30"]

1. d4 {[%emt 0:00:00]} Nf6 {[%emt 0:00:00]} 2. c4 {[%emt 0:00:00]} g6 {[%emt 0:00:22]} 3. Nc3 {[%emt 0:00:00]} Bg7 {[%emt 0:00:10]} 4. e4 {[%emt 0:00:24]} d6 {[%emt 0:00:06]} 5. g3 {[%emt 0:00:16]} O-O {[%emt 0:00:28]} 6. Bg2 {[%emt 0:00:06]} Nc6 {[%emt 0:07:07]} 7. Nf3 {[%emt 0:03:57]} Bg4 {[%emt 0:04:22]} 8. Be3 {[%emt 0:08:21]} e5 {[%emt 0:09:46]} 9. d5 {[%emt 0:02:46]} Nd4 {[%emt 0:03:37]} 10. h3 {[%emt 0:07:13]} Bxf3 {[%emt 0:05:59]} 11. Bxf3 {[%emt 0:00:08]} Nd7 {[%emt 0:18:43]} 12. Nb5 {[%emt 0:04:57]} Nxf3+ {[%emt 0:00:54]} 13. Qxf3 {[%emt 0:00:10]} a6 {[%emt 0:00:16]} 14. Nc3 {[%emt 0:00:53]} f5 {[%emt 0:00:21]} 15. Qe2 {[%emt 0:05:31]} f4 {[%emt 0:01:29]} 16. Bd2 {[%emt 0:00:18]} c5 {[%emt 0:08:54]} 17. Qg4 {[%emt 0:06:39]} Rf7 {[%emt 0:06:02]} 18. h4 {[%emt 0:04:58]} Qf6 {[%emt 0:11:21]} 19. O-O-O {[%emt 0:03:38]} h6 {[%emt 0:07:47]} 20. Rdf1 {[%emt 0:03:59]} Nf8 {[%emt 0:04:19]} 21. Qe2 {[%emt 0:02:26]} Qe7 {[%emt 0:01:36]} 22. Kc2 {[%emt 0:07:48]} Qd7 {[%emt 0:00:33]} 23. Rb1 {[%emt 0:00:09]} Rc8 {[%emt 0:01:35]} 24. f3 {[%emt 0:02:45]} Qc7 {[%emt 0:01:37]} 25. g4 {[%emt 0:00:44]} Nd7 {[%emt 0:00:11]} 26. Kd1 {[%emt 0:00:51]} Bf8 {[%emt 0:00:57]} 27. h5 {[%emt 0:00:17]} g5 {[%emt 0:00:05]} 28. Ke1 {[%emt 0:00:04]} Be7 {[%emt 0:00:38]} 29. Kf2 {[%emt 0:00:16]} Bd8 {[%emt 0:00:32]} 30. Rhc1 {[%emt 0:01:02]} Nf6 {[%emt 0:00:27]} 31. Rg1 {[%emt 0:01:49]} Qd7 {[%emt 0:00:15]} 32. b3 {[%emt 0:01:01]} Ba5 {[%emt 0:00:56]} 33. Na4 {[%emt 0:00:21]} Bxd2 {[%emt 0:00:24]} 34. Qxd2 {[%emt 0:00:05]} Qc7 {[%emt 0:00:12]} 35. Qd3 {[%emt 0:01:59]} Rb8 {[%emt 0:00:18]} 36. Nc3 {[%emt 0:01:00]} Qc8 {[%emt 0:00:41]} 37. a4 {[%emt 0:01:26]} b6 {[%emt 0:01:08]} 38. Ra1 {[%emt 0:00:54]} Rfb7 {[%emt 0:00:19]} 39. Qe2 {[%emt 0:00:51]} Qd7 {[%emt 0:00:22]} 40. Ra2 {[%emt 0:00:25]} Ne8 {[%emt 0:02:38]} 41. Rga1 {[%emt 0:30:25]} Nc7 {[%emt 0:30:24]} 42. Rc1 {[%emt 0:08:54]} Kf7 {[%emt 0:02:37]} 43. Rcc2 {[%emt 0:04:10]} Ke7 {[%emt 0:00:00]} 44. Qd1 {[%emt 0:00:00]} Kd8 {[%emt 0:00:00]} 45. Qa1 {[%emt 0:00:00]} Ne8 {[%emt 0:00:00]} 46. Qd1 {[%emt 0:00:00]} Ke7 {[%emt 0:00:00]} 47. Rab2 {[%emt 0:00:00]} Nf6 {[%emt 0:00:00]} 48. Qg1 {[%emt 0:00:00]} Rg8 {[%emt 0:00:00]} 49. Ke1 {[%emt 0:00:00]} Qc7 {[%emt 0:00:00]} 50. Kd1 {[%emt 0:00:00]} Ra8 {[%emt 0:00:00]} 51. Ra2 {[%emt 0:00:00]} Kd8 {[%emt 0:00:00]} 52. Qg2 {[%emt 0:00:00]} Qd7 {[%emt 0:00:00]} 53. Qe2 {[%emt 0:00:00]} Ne8 {[%emt 0:00:00]} 54. Rc1 {[%emt 0:00:00]} Nc7 {[%emt 0:01:26]} 55. Rca1 {[%emt 0:00:00]} Kc8 {[%emt 0:00:44]} 56. Qd3 {[%emt 0:00:00]} Kb8 {[%emt 0:00:06]} 57. Qc2 {[%emt 0:00:00]} Rba7 {[%emt 0:00:39]} 58. Qe2 {[%emt 0:00:00]} Rb7 {[%emt 0:01:34]} 59. Qd3 {[%emt 0:00:00]} Raa7 {[%emt 0:00:30]} 60. Qe2 {[%emt 0:00:00]} Kc8 {[%emt 0:01:12]} 61. Qc2 {[%emt 0:00:00]} Rb8 {[%emt 0:00:20]} 62. Qe2 {[%emt 0:00:00]} Rab7 {[%emt 0:00:15]} 63. Rc2 {[%emt 0:00:00]} b5 64. axb5 axb5 65. Rca2 bxc4 66. bxc4 {[%emt 0:02:11]} 1/2-1/2

[Event "18th Charleroi Open-A 2019"]
[Site "Charleroi"]
[Date "2019.07.28"]
[Round "2.28"]
[White "Barbier, Wim"]
[Black "Verhalle, Elias"]
[Result "1-0"]
[ECO "A29"]
[WhiteElo "2068"]
[BlackElo "1983"]
[Annotator "NA RC"]
[PlyCount "34"]
[EventDate "2019.07.22"]
[EventType "swiss"]
[EventCountry "BEL"]
[SourceTitle "playchess.com"]
[Source "ChessBase"]
[SourceQuality "1"]
[TimeControl "40/5400+30:1800+30"]

1. Nf3 {[%emt 0:00:00]} Nc6 {[%emt 0:00:00]} 2. c4 {[%emt 0:00:09]} e5 {[%emt 0:00:00]} 3. Nc3 {[%emt 0:00:25]} Nf6 {[%emt 0:00:00]} 4. g3 {[%emt 0:00:46]} Nd4 {[%emt 0:00:00]} 5. Bg2 {[%emt 0:00:59]} Nxf3+ {[%emt 0:00:00]} 6. Bxf3 {[%emt 0:00:08]} Bb4 {[%emt 0:00:00]} 7. Bg2 {[%emt 0:02:43]} O-O {[%emt 0:08:47]} 8. O-O {[%emt 0:00:53]} Re8 {[%emt 0:06:56]} 9. e4 {[%emt 0:02:22]} h6 {[%emt 0:16:31]} 10. d3 {[%emt 0:02:23]} d6 {[%emt 0:01:23]} 11. h3 {[%emt 0:00:46]} Bc5 {[%emt 0:03:53]} 12. Kh2 {[%emt 0:01:35]} c6 {[%emt 0:13:50]} 13. f4 {[%emt 0:01:51]} a6 {[%emt 0:00:54]} 14. Qf3 {[%emt 0:07:06]} Kh7 {[%emt 0:08:52]} 15. g4 {[%emt 0:03:04]} exf4 {[%emt 0:08:53]} 16. Bxf4 {[%emt 0:02:05]} Re6 {[%emt 0:00:25]} 17. g5 {[%emt 0:05:47]} Ng8 {[%emt 0:00:06]} 1-0

[Event "18th Charleroi Open-A 2019"]
[Site "Charleroi"]
[Date "2019.07.28"]
[Round "2.29"]
[White "Van Doren, Bas"]
[Black "Boucquet, Emile"]
[Result "0-1"]
[ECO "B94"]
[WhiteElo "1976"]
[BlackElo "2064"]
[Annotator "NA RC"]
[PlyCount "40"]
[EventDate "2019.07.22"]
[EventType "swiss"]
[EventCountry "BEL"]
[SourceTitle "playchess.com"]
[Source "ChessBase"]
[SourceQuality "1"]
[TimeControl "40/5400+30:1800+30"]

1. e4 {[%emt 0:00:00]} c5 {[%emt 0:00:00]} 2. Nf3 {[%emt 0:00:00]} d6 {[%emt 0:00:00]} 3. d4 {[%emt 0:00:00]} Nf6 {[%emt 0:00:00]} 4. Nc3 {[%emt 0:00:14]} cxd4 {[%emt 0:00:00]} 5. Nxd4 {[%emt 0:00:05]} a6 {[%emt 0:00:00]} 6. Bg5 {[%emt 0:00:21]} Nbd7 {[%emt 0:00:00]} 7. Qe2 {[%emt 0:00:38]} b5 {[%emt 0:04:06]} 8. f4 {[%emt 0:00:45]} Bb7 {[%emt 0:03:15]} 9. e5 {[%emt 0:04:49]} b4 {[%emt 0:03:30]} 10. exf6 {[%emt 0:09:01]} bxc3 {[%emt 0:06:46]} 11. fxe7 {[%emt 0:15:04]} Bxe7 {[%emt 0:00:09]} 12. O-O-O {[%emt 0:07:45]} cxb2+ {[%emt 0:05:37]} 13. Kb1 {[%emt 0:00:07]} Nc5 {[%emt 0:02:21]} 14. Nf5 {[%emt 0:18:22]} Ne4 {[%emt 0:04:35]} 15. Qe3 {[%emt 0:01:44]} Qa5 {[%emt 0:16:43]} 16. Rd3 {[%emt 0:17:49]} Qxf5 {[%emt 0:06:03]} 17. Bxe7 {[%emt 0:01:41]} Kxe7 {[%emt 0:02:05]} 18. g4 {[%emt 0:00:33]} Qc5 {[%emt 0:00:38]} 19. Rd4 {[%emt 0:01:37]} Rhe8 {[%emt 0:04:09]} 20. Bd3 {[%emt 0:03:33]} Kf8 {[%emt 0:00:16]} 0-1

[Event "18th Charleroi Open-A 2019"]
[Site "Charleroi"]
[Date "2019.07.28"]
[Round "2.30"]
[White "Butzen, Robin"]
[Black "Dugailliez, Guy"]
[Result "1-0"]
[ECO "D14"]
[WhiteElo "1967"]
[BlackElo "2063"]
[Annotator "NA RC"]
[PlyCount "117"]
[EventDate "2019.07.22"]
[EventType "swiss"]
[EventCountry "BEL"]
[SourceTitle "playchess.com"]
[Source "ChessBase"]
[SourceQuality "1"]
[TimeControl "40/5400+30:1800+30"]

1. d4 {[%emt 0:00:00]} d5 {[%emt 0:00:00]} 2. c4 {[%emt 0:00:00]} c6 {[%emt 0:00:01]} 3. cxd5 {[%emt 0:00:00]} cxd5 {[%emt 0:00:35]} 4. Nc3 {[%emt 0:00:00]} Nf6 {[%emt 0:00:22]} 5. Bf4 {[%emt 0:00:06]} Bf5 {[%emt 0:04:03]} 6. Qb3 {[%emt 0:09:32]} Qb6 {[%emt 0:11:18]} 7. Qxb6 {[%emt 0:15:37]} axb6 {[%emt 0:00:06]} 8. e3 {[%emt 0:00:14]} Nc6 {[%emt 0:02:08]} 9. Nf3 {[%emt 0:01:38]} e6 {[%emt 0:02:01]} 10. Bb5 {[%emt 0:07:51]} Nd7 {[%emt 0:01:15]} 11. Nh4 {[%emt 0:06:05]} Bg6 {[%emt 0:02:38]} 12. O-O {[%emt 0:01:47]} f6 {[%emt 0:00:44]} 13. Nxg6 {[%emt 0:00:10]} hxg6 {[%emt 0:00:07]} 14. Rfc1 {[%emt 0:11:34]} g5 {[%emt 0:06:35]} 15. Bg3 {[%emt 0:01:24]} f5 {[%emt 0:04:09]} 16. Ne2 {[%emt 0:07:38]} Rc8 {[%emt 0:05:06]} 17. Rc2 {[%emt 0:01:09]} Nf6 {[%emt 0:03:10]} 18. a4 {[%emt 0:17:08]} Bb4 {[%emt 0:04:24]} 19. Nc1 {[%emt 0:01:38]} Ke7 {[%emt 0:11:41]} 20. Nd3 {[%emt 0:03:16]} Bd6 {[%emt 0:01:07]} 21. Bxd6+ {[%emt 0:04:47]} Kxd6 {[%emt 0:00:11]} 22. Rac1 {[%emt 0:00:05]} Na7 {[%emt 0:08:12]} 23. Ne5 {[%emt 0:00:22]} Rxc2 {[%emt 0:01:42]} 24. Rxc2 {[%emt 0:00:05]} Rf8 {[%emt 0:01:08]} 25. Bd3 {[%emt 0:01:05]} Nc6 {[%emt 0:02:34]} 26. Nxc6 {[%emt 0:00:57]} bxc6 {[%emt 0:00:29]} 27. b3 {[%emt 0:00:03]} Nd7 {[%emt 0:01:06]} 28. h3 {[%emt 0:01:27]} e5 {[%emt 0:04:44]} 29. Kf1 {[%emt 0:01:23]} f4 {[%emt 0:03:27]} 30. Ke1 {[%emt 0:02:09]} fxe3 {[%emt 0:00:32]} 31. fxe3 {[%emt 0:02:01]} exd4 {[%emt 0:00:19]} 32. exd4 {[%emt 0:01:41]} Rf4 {[%emt 0:00:35]} 33. Rf2 {[%emt 0:00:19]} Rxd4 {[%emt 0:00:54]} 34. Bc2 {[%emt 0:00:05]} Rf4 {[%emt 0:01:10]} 35. Re2 {[%emt 0:00:44]} Ne5 {[%emt 0:00:58]} 36. Kd2 {[%emt 0:00:07]} c5 {[%emt 0:03:03]} 37. Bb1 {[%emt 0:01:00]} d4 {[%emt 0:01:48]} 38. Bd3 {[%emt 0:00:14]} Kd5 {[%emt 0:00:53]} 39. Ba6 {[%emt 0:00:38]} Kd6 {[%emt 0:05:27]} 40. Bd3 {[%emt 0:00:13]} g4 {[%emt 0:00:31]} 41. hxg4 {[%emt 0:30:44]} Nxg4 {[%emt 0:30:40]} 42. Be4 {[%emt 0:00:00]} Ne3 {[%emt 0:00:00]} 43. Kd3 {[%emt 0:00:00]} Rf1 {[%emt 0:00:00]} 44. Rb2 {[%emt 0:00:00]} Ke5 {[%emt 0:00:00]} 45. Bb7 {[%emt 0:00:00]} Kf4 {[%emt 0:00:00]} 46. Bc6 {[%emt 0:00:00]} Kg3 {[%emt 0:00:00]} 47. Bb7 {[%emt 0:00:00]} Rf2 {[%emt 0:00:00]} 48. Rb1 {[%emt 0:00:00]} Nxg2 {[%emt 0:00:00]} 49. Bxg2 {[%emt 0:00:00]} Kxg2 {[%emt 0:00:00]} 50. b4 {[%emt 0:00:00]} Ra2 {[%emt 0:00:00]} 51. a5 {[%emt 0:00:00]} Ra4 {[%emt 0:00:00]} 52. axb6 {[%emt 0:00:00]} Ra3+ {[%emt 0:00:00]} 53. Kc4 {[%emt 0:00:00]} Rc3+ {[%emt 0:00:00]} 54. Kb5 {[%emt 0:04:31]} c4 {[%emt 0:00:00]} 55. b7 {[%emt 0:00:07]} d3 {[%emt 0:00:00]} 56. b8=Q {[%emt 0:00:05]} Rc2 {[%emt 0:00:00]} 57. Qb7+ {[%emt 0:00:15]} Kf2 {[%emt 0:00:00]} 58. Qf7+ {[%emt 0:01:16]} Ke3 {[%emt 0:00:00]} 59. Qe7+ {[%emt 0:01:09]} 1-0

[Event "18th Charleroi Open-A 2019"]
[Site "Charleroi"]
[Date "2019.07.28"]
[Round "2.31"]
[White "Uhoda, Philippe"]
[Black "Watelet, Sylvain"]
[Result "1-0"]
[ECO "B07"]
[WhiteElo "2062"]
[BlackElo "1961"]
[Annotator "NA RC"]
[PlyCount "75"]
[EventDate "2019.07.22"]
[EventType "swiss"]
[EventCountry "BEL"]
[SourceTitle "playchess.com"]
[Source "ChessBase"]
[SourceQuality "1"]
[TimeControl "40/5400+30:1800+30"]

1. d4 {[%emt 0:00:00]} d6 {[%emt 0:05:23]} 2. e4 {[%emt 0:01:12]} Nf6 {[%emt 0:01:44]} 3. Nc3 {[%emt 0:00:10]} Nbd7 {[%emt 0:00:19]} 4. g4 {[%emt 0:04:05]} h6 {[%emt 0:00:49]} 5. h3 {[%emt 0:00:20]} e5 {[%emt 0:00:37]} 6. Bg2 {[%emt 0:00:19]} c6 {[%emt 0:03:31]} 7. Nge2 {[%emt 0:02:29]} g6 {[%emt 0:06:27]} 8. Be3 {[%emt 0:02:49]} b5 {[%emt 0:04:30]} 9. a3 {[%emt 0:00:40]} Qa5 {[%emt 0:01:52]} 10. O-O {[%emt 0:06:04]} Be7 {[%emt 0:03:37]} 11. Qd2 {[%emt 0:00:59]} h5 {[%emt 0:00:55]} 12. g5 {[%emt 1:16:53]} Nh7 {[%emt 0:01:22]} 13. h4 {[%emt 0:00:00]} O-O {[%emt 0:03:10]} 14. Nd5 {[%emt 0:00:00]} Bd8 {[%emt 0:01:41]} 15. Qxa5 {[%emt 0:00:00]} Bxa5 {[%emt 0:00:13]} 16. Ne7+ {[%emt 0:00:00]} Kg7 {[%emt 0:00:46]} 17. Bh3 {[%emt 0:00:00]} Nb6 {[%emt 0:03:48]} 18. Bxc8 {[%emt 0:00:00]} Nxc8 {[%emt 0:00:22]} 19. Nxc6 {[%emt 0:00:00]} Bb6 {[%emt 0:02:14]} 20. dxe5 {[%emt 0:00:00]} dxe5 {[%emt 0:05:15]} 21. Bxb6 {[%emt 0:00:00]} Nxb6 {[%emt 0:00:11]} 22. Nxe5 {[%emt 0:00:00]} Rfe8 {[%emt 0:00:43]} 23. f4 {[%emt 0:00:00]} Nc4 {[%emt 0:00:31]} 24. Nxc4 {[%emt 0:00:00]} Rxe4 {[%emt 0:00:06]} 25. Nd6 {[%emt 0:00:00]} Rxe2 {[%emt 0:00:36]} 26. f5 {[%emt 0:00:00]} Rd8 {[%emt 0:02:41]} 27. Rad1 {[%emt 0:00:00]} Kg8 {[%emt 0:00:39]} 28. fxg6 {[%emt 0:00:00]} fxg6 {[%emt 0:00:12]} 29. Nxb5 {[%emt 0:00:00]} Rxd1 {[%emt 0:00:39]} 30. Rxd1 {[%emt 0:00:00]} Rxc2 {[%emt 0:00:47]} 31. Rd8+ {[%emt 0:00:00]} Kg7 {[%emt 0:01:48]} 32. Rd7+ {[%emt 0:00:00]} Kg8 {[%emt 0:00:06]} 33. b4 {[%emt 0:00:44]} a6 {[%emt 0:01:06]} 34. Nc7 {[%emt 0:01:14]} Rc6 {[%emt 0:06:09]} 35. Nd5 {[%emt 0:01:26]} Re6 {[%emt 0:02:00]} 36. Ra7 {[%emt 0:01:50]} Rd6 {[%emt 0:02:30]} 37. Nc7 {[%emt 0:02:02]} Rd7 {[%emt 0:00:46]} 38. Ra8+ {[%emt 0:00:07]} 1-0

[Event "18th Charleroi Open-A 2019"]
[Site "Charleroi"]
[Date "2019.07.28"]
[Round "2.32"]
[White "Van Haelst, Raymond"]
[Black "Vanden Bussche, Steven"]
[Result "1-0"]
[ECO "D13"]
[WhiteElo "1947"]
[BlackElo "2061"]
[Annotator "NA"]
[PlyCount "56"]
[EventDate "2019.07.22"]
[EventType "swiss"]
[EventCountry "BEL"]
[SourceTitle "playchess.com"]
[Source "ChessBase"]
[SourceQuality "1"]
[TimeControl "40/5400+30:1800+30"]

1. d4 {[%emt 0:00:00]} d5 {[%emt 0:00:00]} 2. Nf3 {[%emt 0:00:02]} Nf6 {[%emt 0:00:00]} 3. c4 {[%emt 0:00:20]} c6 {[%emt 0:00:00]} 4. cxd5 {[%emt 0:00:50]} cxd5 {[%emt 0:00:07]} 5. Nc3 {[%emt 0:00:10]} Nc6 {[%emt 0:00:11]} 6. Bf4 {[%emt 0:00:21]} e6 {[%emt 0:01:19]} 7. Ne5 {[%emt 0:01:13]} Qb6 {[%emt 0:07:42]} 8. Nxc6 {[%emt 0:07:32]} bxc6 {[%emt 0:02:58]} 9. Rb1 {[%emt 0:15:33]} Ba6 {[%emt 0:03:10]} 10. a3 {[%emt 0:04:10]} Be7 {[%emt 0:06:16]} 11. Na4 {[%emt 0:03:06]} Qb7 {[%emt 0:03:48]} 12. Qc2 {[%emt 0:01:56]} Nd7 {[%emt 0:01:48]} 13. f3 {[%emt 0:07:56]} O-O {[%emt 0:03:23]} 14. b4 {[%emt 0:00:46]} f6 {[%emt 0:06:03]} 15. e3 {[%emt 0:04:45]} Bxf1 {[%emt 0:00:20]} 16. Rxf1 {[%emt 0:00:07]} e5 {[%emt 0:03:07]} 17. Bg3 {[%emt 0:00:17]} Qa6 {[%emt 0:06:30]} 18. Kf2 {[%emt 0:02:36]} Rac8 {[%emt 0:02:54]} 19. Qb3 {[%emt 0:03:24]} exd4 {[%emt 0:02:30]} 20. exd4 {[%emt 0:00:09]} f5 {[%emt 0:01:39]} 21. Kg1 {[%emt 0:03:56]} Bf6 {[%emt 0:00:27]} 22. Rbd1 {[%emt 0:05:03]} Nb6 {[%emt 0:03:11]} 23. Nb2 {[%emt 0:06:36]} Rfe8 {[%emt 0:01:05]} 24. a4 {[%emt 0:04:16]} Kh8 {[%emt 0:10:20]} 25. Qd3 {[%emt 0:04:02]} Qxd3 {[%emt 0:00:50]} 26. Rxd3 {[%emt 0:00:28]} Re2 {[%emt 0:01:10]} 27. Rf2 {[%emt 0:00:14]} Rce8 {[%emt 0:00:33]} 28. Kf1 {[%emt 0:00:43]} R2e6 {[%emt 0:32:39]} 1-0

[Event "18th Charleroi Open-A 2019"]
[Site "Charleroi"]
[Date "2019.07.28"]
[Round "2.33"]
[White "Oupindrin, Narayanin"]
[Black "Moerman, Thomas"]
[Result "0-1"]
[ECO "B49"]
[WhiteElo "2056"]
[BlackElo "1931"]
[Annotator "NA"]
[PlyCount "80"]
[EventDate "2019.07.22"]
[EventType "swiss"]
[EventCountry "BEL"]
[SourceTitle "playchess.com"]
[Source "ChessBase"]
[SourceQuality "1"]
[TimeControl "40/5400+30:1800+30"]

1. e4 {[%emt 0:00:00]} c5 {[%emt 0:00:00]} 2. Nf3 {[%emt 0:00:00]} e6 {[%emt 0:00:00]} 3. d4 {[%emt 0:00:00]} cxd4 {[%emt 0:00:00]} 4. Nxd4 {[%emt 0:00:14]} Nc6 {[%emt 0:00:18]} 5. Nc3 {[%emt 0:00:48]} Qc7 {[%emt 0:00:20]} 6. Be3 {[%emt 0:01:10]} a6 {[%emt 0:00:23]} 7. Be2 {[%emt 0:02:10]} Nf6 {[%emt 0:01:28]} 8. O-O {[%emt 0:01:00]} Bb4 {[%emt 0:00:37]} 9. Na4 {[%emt 0:04:38]} Be7 {[%emt 0:00:35]} 10. Nxc6 {[%emt 0:02:38]} bxc6 {[%emt 0:00:05]} 11. f3 {[%emt 0:15:36]} Rb8 {[%emt 0:01:33]} 12. c4 {[%emt 0:05:23]} d5 {[%emt 0:05:33]} 13. cxd5 {[%emt 0:03:07]} exd5 {[%emt 0:00:13]} 14. exd5 {[%emt 0:05:48]} Nxd5 {[%emt 0:00:49]} 15. Bf2 {[%emt 0:07:54]} Bd6 {[%emt 0:01:35]} 16. g3 {[%emt 0:02:02]} O-O {[%emt 0:03:20]} 17. Bc4 {[%emt 0:02:26]} h5 {[%emt 0:07:51]} 18. Bxd5 {[%emt 0:05:20]} cxd5 {[%emt 0:01:01]} 19. Rc1 {[%emt 0:00:48]} Qa5 {[%emt 0:08:49]} 20. a3 {[%emt 0:10:08]} h4 {[%emt 0:06:01]} 21. b4 {[%emt 0:01:23]} Qb5 {[%emt 0:07:27]} 22. Nc3 {[%emt 0:02:22]} Qd7 {[%emt 0:02:01]} 23. Nxd5 {[%emt 0:03:20]} Bb7 {[%emt 0:04:32]} 24. Nf4 {[%emt 0:11:53]} Rfd8 {[%emt 0:08:36]} 25. Be3 {[%emt 0:01:24]} Qe7 {[%emt 0:04:19]} 26. Qb3 {[%emt 0:02:19]} hxg3 {[%emt 0:12:19]} 27. hxg3 {[%emt 0:00:21]} Re8 {[%emt 0:00:53]} 28. Bd2 {[%emt 0:03:16]} Qg5 {[%emt 0:04:23]} 29. Kf2 {[%emt 0:00:48]} Rbd8 {[%emt 0:01:16]} 30. Be3 {[%emt 0:00:55]} Qf5 {[%emt 0:01:38]} 31. Qc2 {[%emt 0:01:39]} Qf6 {[%emt 0:03:57]} 32. Rh1 {[%emt 0:01:29]} g6 {[%emt 0:00:12]} 33. Rce1 {[%emt 0:00:29]} Rc8 {[%emt 0:01:12]} 34. Qd3 {[%emt 0:00:43]} Be5 {[%emt 0:03:11]} 35. Rc1 {[%emt 0:01:12]} Rcd8 {[%emt 0:00:43]} 36. Qc2 {[%emt 0:00:17]} Bd4 {[%emt 0:03:44]} 37. Rce1 {[%emt 0:00:10]} Bc3 {[%emt 0:02:29]} 38. Re2 {[%emt 0:01:30]} Qc6 {[%emt 0:01:01]} 39. Ng2 {[%emt 0:02:00]} Qxf3+ {[%emt 0:00:21]} 40. Kg1 {[%emt 0:00:06]} Rxe3 {[%emt 0:02:39]} 0-1

[Event "18th Charleroi Open-A 2019"]
[Site "Charleroi"]
[Date "2019.07.28"]
[Round "2.34"]
[White "Fischer, Julie"]
[Black "Dierckens, Sarah"]
[Result "1-0"]
[ECO "C14"]
[WhiteElo "2050"]
[BlackElo "1770"]
[Annotator "NA"]
[PlyCount "101"]
[EventDate "2019.07.22"]
[EventType "swiss"]
[EventCountry "BEL"]
[SourceTitle "playchess.com"]
[Source "ChessBase"]
[SourceQuality "1"]
[TimeControl "40/5400+30:1800+30"]

1. e4 {[%emt 0:01:38]} e6 {[%emt 0:06:33]} 2. d4 {[%emt 0:02:15]} d5 {[%emt 0:00:05]} 3. Nc3 {[%emt 0:00:04]} Nf6 {[%emt 0:00:06]} 4. Bg5 {[%emt 0:00:04]} Be7 {[%emt 0:00:06]} 5. e5 {[%emt 0:00:03]} Nfd7 {[%emt 0:00:05]} 6. h4 {[%emt 0:00:04]} a6 {[%emt 0:00:22]} 7. Qg4 {[%emt 0:00:36]} Bxg5 {[%emt 0:00:06]} 8. hxg5 {[%emt 0:00:05]} c5 {[%emt 0:00:34]} 9. g6 {[%emt 0:06:32]} f5 {[%emt 0:00:35]} 10. exf6 {[%emt 0:06:49]} Nxf6 {[%emt 0:01:58]} 11. Rxh7 {[%emt 0:04:49]} Nxh7 {[%emt 0:08:49]} 12. gxh7 {[%emt 0:00:05]} Qf6 {[%emt 0:00:08]} 13. Nxd5 {[%emt 0:00:50]} exd5 {[%emt 0:05:21]} 14. Qxc8+ {[%emt 0:00:08]} Qd8 {[%emt 0:00:06]} 15. Qxb7 {[%emt 0:05:43]} Qe7+ {[%emt 0:02:51]} 16. Qxe7+ {[%emt 0:01:02]} Kxe7 {[%emt 0:00:06]} 17. dxc5 {[%emt 0:01:08]} Rxh7 {[%emt 0:00:09]} 18. O-O-O {[%emt 0:00:19]} Nd7 {[%emt 0:02:43]} 19. Nh3 {[%emt 0:03:31]} Nf6 {[%emt 0:05:15]} 20. Be2 {[%emt 0:08:17]} a5 {[%emt 0:02:36]} 21. Nf4 {[%emt 0:02:52]} Rd8 {[%emt 0:04:56]} 22. Bf3 {[%emt 0:00:07]} d4 {[%emt 0:00:27]} 23. Ne2 {[%emt 0:05:53]} Nd7 {[%emt 0:04:22]} 24. Nxd4 {[%emt 0:00:16]} Rc8 {[%emt 0:00:05]} 25. Re1+ {[%emt 0:02:03]} Kf6 {[%emt 0:02:29]} 26. Re6+ {[%emt 0:03:52]} Kg5 {[%emt 0:04:25]} 27. c6 {[%emt 0:02:20]} Rh1+ {[%emt 0:01:25]} 28. Kd2 {[%emt 0:00:07]} Nb6 {[%emt 0:00:04]} 29. Kd3 {[%emt 0:01:05]} Na4 {[%emt 0:01:17]} 30. Re5+ {[%emt 0:00:30]} Kf6 {[%emt 0:00:08]} 31. Rf5+ {[%emt 0:02:07]} Kg6 {[%emt 0:01:31]} 32. b3 {[%emt 0:03:41]} Nb2+ {[%emt 0:02:08]} 33. Kc3 {[%emt 0:02:39]} Nd1+ {[%emt 0:02:17]} 34. Bxd1 {[%emt 0:00:10]} Rxd1 {[%emt 0:00:05]} 35. Rxa5 {[%emt 0:00:08]} Rf1 {[%emt 0:01:03]} 36. f3 {[%emt 0:00:05]} Rf2 {[%emt 0:00:30]} 37. g4 {[%emt 0:00:04]} Kf6 {[%emt 0:01:32]} 38. b4 {[%emt 0:00:41]} Rf1 {[%emt 0:00:42]} 39. Rf5+ {[%emt 0:00:25]} Ke7 {[%emt 0:00:27]} 40. b5 {[%emt 0:00:07]} Ra1 {[%emt 0:00:37]} 41. b6 {[%emt 0:30:29]} Rb1 {[%emt 0:32:02]} 42. Re5+ {[%emt 0:04:47]} Kd6 {[%emt 0:02:34]} 43. Re6+ {[%emt 0:02:55]} Kd5 {[%emt 0:00:07]} 44. c7 {[%emt 0:01:02]} Rd1 {[%emt 0:00:57]} 45. Re4 {[%emt 0:00:10]} Rb1 {[%emt 0:00:47]} 46. Nb3 {[%emt 0:00:24]} Kc6 {[%emt 0:00:15]} 47. Rb4 {[%emt 0:00:12]} Rf1 {[%emt 0:00:46]} 48. Nd4+ {[%emt 0:00:09]} Kb7 {[%emt 0:01:16]} 49. a4 {[%emt 0:00:04]} Re1 {[%emt 0:01:57]} 50. a5 {[%emt 0:06:01]} Ra1 {[%emt 0:02:19]} 51. Nf5 {[%emt 0:01:49]} 1-0

[Event "18th Charleroi Open-A 2019"]
[Site "Charleroi"]
[Date "2019.07.29"]
[Round "3.1"]
[White "Maerevoet, Sim"]
[Black "Gurevich, Mikhail"]
[Result "1/2-1/2"]
[ECO "A81"]
[WhiteElo "2321"]
[BlackElo "2587"]
[Annotator "ChessBase"]
[PlyCount "65"]
[EventDate "2019.07.22"]
[EventType "swiss"]
[EventCountry "BEL"]
[SourceTitle "playchess.com"]
[Source "ChessBase"]
[SourceQuality "1"]
[TimeControl "40/5400+30:1800+30"]

1. d4 {[%emt 0:00:00]} d6 {[%emt 0:00:00]} 2. Nf3 {[%emt 0:00:03]} g6 {[%emt 0:00:00]} 3. g3 {[%emt 0:00:12]} Bg7 {[%emt 0:00:00]} 4. Bg2 {[%emt 0:00:04]} f5 {[%emt 0:00:01]} 5. O-O {[%emt 0:00:24]} Nf6 {[%emt 0:00:07]} 6. Nbd2 {[%emt 0:00:12]} O-O {[%emt 0:00:35]} 7. Re1 {[%emt 0:00:19]} Nc6 {[%emt 0:04:25]} 8. e4 {[%emt 0:00:41]} e5 {[%emt 0:00:23]} 9. exf5 {[%emt 0:00:42]} Bxf5 {[%emt 0:00:08]} 10. dxe5 {[%emt 0:00:05]} dxe5 {[%emt 0:00:03]} 11. c3 {[%emt 0:00:11]} Kh8 {[%emt 0:05:06]} 12. Qb3 {[%emt 0:07:30]} e4 {[%emt 0:10:28]} 13. Ng5 {[%emt 0:03:50]} e3 {[%emt 0:01:21]} 14. Rxe3 {[%emt 0:14:34]} Ng4 {[%emt 0:01:33]} 15. Nf7+ {[%emt 0:05:30]} Rxf7 {[%emt 0:01:27]} 16. Qxf7 {[%emt 0:00:09]} Nxe3 {[%emt 0:02:45]} 17. fxe3 {[%emt 0:00:09]} Ne5 {[%emt 0:00:41]} 18. Qd5 {[%emt 0:11:18]} Qxd5 {[%emt 0:09:54]} 19. Bxd5 {[%emt 0:00:15]} Rd8 {[%emt 0:00:03]} 20. e4 {[%emt 0:14:35]} Bh3 {[%emt 0:15:23]} 21. Nf1 {[%emt 0:06:22]} c6 {[%emt 0:00:11]} 22. Bb3 {[%emt 0:00:06]} Nd3 {[%emt 0:04:33]} 23. Bc4 {[%emt 0:06:28]} b5 {[%emt 0:00:28]} 24. Bg5 {[%emt 0:02:07]} Rd7 {[%emt 0:00:32]} 25. Bxd3 {[%emt 0:00:21]} Rxd3 {[%emt 0:00:05]} 26. Kf2 {[%emt 0:05:04]} Kg8 {[%emt 0:06:15]} 27. Be3 {[%emt 0:06:42]} a6 {[%emt 0:00:48]} 28. Nd2 {[%emt 0:02:40]} Rd8 {[%emt 0:04:56]} 29. Nb3 {[%emt 0:01:55]} Rf8+ {[%emt 0:05:15]} 30. Ke2 {[%emt 0:00:36]} Bg2 {[%emt 0:00:09]} 31. Nc5 {[%emt 0:00:57]} Re8 {[%emt 0:00:05]} 32. Rd1 {[%emt 0:02:05]} Bf8 {[%emt 0:04:05]} 33. Kf2 {[%emt 0:02:12]} 1/2-1/2